Workbook

Sheet Annual Sales - 2019 - 2020 (hidden)
F1: GPS Percent Rent Calculation
A3: 001442-BKC (Thibodaux)
A4: Vendor Info | B4: BKC | F4: 001442-BKC
A5: 2020 Base Rent | B5: 11406.58
C9: Sales | D9: Monthly Breakpoint | E9: Excess Sales 1 | F9: Excess Sales 2 | G9: % - Tier 1 | H9: $ - Tier 1 | I9: % - Tier 2 | J9: $ - Tier 1 | K9: Total Tier Sales* % | L9: Monthly Base Rents | M9: Total Percent Rent - YTD | N9: Amount Paid - YTD | O9: Notes | P9: Balance Due
B10: 2020-01-01 | C10: =VLOOKUP($F$4,'[2]BKC PIVOT'!$A:$N,'[2]BKC PIVOT'!B$1,FALSE) -> 217878.14 | D10: =(1599999.99/12) -> 133333.3325 | E10: =IFERROR(IF(C10<D10,C10,D10),"") -> 133333.3325 | F10: =IFERROR(IF(C10="","",IF(C10>D10,C10-D10,0)),"") -> 84544.8075 | G10: 0.085 | H10: =IFERROR(IF(C10="","",E10*G10),"") -> 11333.33326 | I10: 0.1 | J10: =IFERROR(IF(C10="","",F10*I10),"") -> 8454.48075 | K10: =IFERROR(+H10+J10,"") -> 19787.81401 | L10: =$B$5 -> 11406.58 | M10: =K10-L10 -> 8381.234013 | P10: =K10-L10 -> 8381.234013
B11: 2020-02-01 | C11: =VLOOKUP($F$4,'[2]BKC PIVOT'!$A:$N,'[2]BKC PIVOT'!C$1,FALSE) -> 233370.03 | D11: =(1599999.99/12) -> 133333.3325 | E11: =IFERROR(IF(C11<D11,C11,D11),"") -> 133333.3325 | F11: =IFERROR(IF(C11="","",IF(C11>D11,C11-D11,0)),"") -> 100036.6975 | G11: 0.085 | H11: =IFERROR(IF(C11="","",E11*G11),"") -> 11333.33326 | I11: 0.1 | J11: =IFERROR(IF(C11="","",F11*I11),"") -> 10003.66975 | K11: =IFERROR(+H11+J11,"") -> 21337.00301 | L11: =$B$5 -> 11406.58 | M11: =K11-L11 -> 9930.423012 | P11: =K11-L11 -> 9930.423012
B12: 2020-03-01 | C12: =VLOOKUP($F$4,'[2]BKC PIVOT'!$A:$N,'[2]BKC PIVOT'!D$1,FALSE) -> 199115.06 | D12: 133333.3325 | E12: 133333.3325 | F12: =IFERROR(IF(C12="","",IF(C12>D12,C12-D12,0)),"") -> 65781.7275 | G12: 0.085 | H12: =IFERROR(IF(C12="","",E12*G12),"") -> 11333.33326 | I12: 0.1 | J12: =IFERROR(IF(C12="","",F12*I12),"") -> 6578.17275 | K12: 17911.50601 | L12: 11406.58 | M12: 6504.926012 | P12: 6504.926012
B13: Q1 | C13: =SUM(C10:C12) -> 650363.23 | D13: =SUM(D10:D12) -> 399999.9975 | E13: =C13-D13 -> 250363.2325 | F13: =SUM(F10:F12) -> 250363.2325 | G13: 0.085 | H13: =SUM(H10:H12) -> 33999.99979 | I13: 0.1 | J13: =SUM(J10:J12) -> 25036.32325 | K13: =SUM(K10:K12) -> 59036.32304 | L13: =SUM(L10:L12) -> 34219.74 | M13: =K13-L13 -> 24816.58304 | P13: =M13-N13 -> 24816.58304 | Q13: Period Accrual to Actual Month Payment Variance
B14: 2020-04-01 | C14: =VLOOKUP($F$4,'[2]BKC PIVOT'!$A:$N,'[2]BKC PIVOT'!E$1,FALSE) -> 170785.86 | D14: 133333.3325 | E14: 133333.3325 | F14: =IFERROR(IF(C14="","",IF(C14>D14,C14-D14,0)),"") -> 37452.5275 | G14: 0.085 | H14: =IFERROR(IF(C14="","",E14*G14),"") -> 11333.33326 | I14: 0.1 | J14: =IFERROR(IF(C14="","",F14*I14),"") -> 3745.25275 | K14: 15078.58601 | L14: 11406.58 | M14: 3672.006012 | P14: 3672.006012
B15: 2020-05-01 | C15: =VLOOKUP($F$4,'[2]BKC PIVOT'!$A:$N,'[2]BKC PIVOT'!F$1,FALSE) -> 221984.81 | D15: 133333.3325 | E15: 133333.3325 | F15: =IFERROR(IF(C15="","",IF(C15>D15,C15-D15,0)),"") -> 88651.4775 | G15: 0.085 | H15: =IFERROR(IF(C15="","",E15*G15),"") -> 11333.33326 | I15: 0.1 | J15: =IFERROR(IF(C15="","",F15*I15),"") -> 8865.14775 | K15: 20198.48101 | L15: 11406.58 | M15: 8791.901012 | P15: 8791.901012
B16: 2020-06-01 | C16: =VLOOKUP($F$4,'[2]BKC PIVOT'!$A:$N,'[2]BKC PIVOT'!G$1,FALSE) -> 231089.46 | D16: 133333.3325 | E16: 133333.3325 | F16: =IFERROR(IF(C16="","",IF(C16>D16,C16-D16,0)),"") -> 97756.1275 | G16: 0.085 | H16: =IFERROR(IF(C16="","",E16*G16),"") -> 11333.33326 | I16: 0.1 | J16: =IFERROR(IF(C16="","",F16*I16),"") -> 9775.61275 | K16: =IFERROR(+H16+J16,"") -> 21108.94601 | L16: 11406.58 | M16: 9702.366013 | P16: 9702.366013
B17: Q2 | C17: =SUM(C14:C16) -> 623860.13 | D17: =SUM(D14:D16) -> 399999.9975 | E17: =C17-D17 -> 223860.1325 | F17: =SUM(F14:F16) -> 223860.1325 | G17: 0.085 | H17: =SUM(H14:H16) -> 33999.99979 | I17: 0.1 | J17: =SUM(J14:J16) -> 22386.01325 | K17: =SUM(K14:K16) -> 56386.01304 | L17: =SUM(L14:L16) -> 34219.74 | M17: =K17-L17 -> 22166.27304 | P17: =M17-N17 -> 22166.27304 | Q17: Period Accrual to Actual Month Payment Variance
B18: 2020-07-01 | C18: =VLOOKUP($F$4,'[2]BKC PIVOT'!$A:$N,'[2]BKC PIVOT'!H$1,FALSE) -> 0 | E18: 0 | F18: =IFERROR(IF(C18="","",IF(C18>D18,C18-D18,0)),"") -> 0 | G18: 0.085 | H18: =IFERROR(IF(C18="","",E18*G18),"") -> 0 | I18: 0.1 | J18: =IFERROR(IF(C18="","",F18*I18),"") -> 0 | K18: 0 | M18: 0 | P18: 0
B19: 2020-08-01 | C19: =VLOOKUP($F$4,'[2]BKC PIVOT'!$A:$N,'[2]BKC PIVOT'!I$1,FALSE) -> 0 | E19: 0 | F19: =IFERROR(IF(C19="","",IF(C19>D19,C19-D19,0)),"") -> 0 | G19: 0.085 | H19: =IFERROR(IF(C19="","",E19*G19),"") -> 0 | I19: 0.1 | J19: =IFERROR(IF(C19="","",F19*I19),"") -> 0 | K19: =IFERROR(+H19+J19,"") -> 0 | M19: =K19-L19 -> 0 | P19: =K19-L19 -> 0
B20: 2020-09-01 | C20: =VLOOKUP($F$4,'[2]BKC PIVOT'!$A:$N,'[2]BKC PIVOT'!J$1,FALSE) -> 0 | D20: 0 | E20: 0 | F20: =IFERROR(IF(C20="","",IF(C20>D20,C20-D20,0)),"") -> 0 | G20: 0.085 | H20: =IFERROR(IF(C20="","",E20*G20),"") -> 0 | I20: 0.1 | J20: =IFERROR(IF(C20="","",F20*I20),"") -> 0 | K20: 0 | L20: 0 | M20: 0 | P20: 0
B21: Q3 | C21: =SUM(C18:C20) -> 0 | D21: =SUM(D18:D20) -> 0 | E21: =C21-D21 -> 0 | F21: =SUM(F18:F20) -> 0 | G21: 0.085 | H21: =SUM(H18:H20) -> 0 | I21: 0.1 | J21: =SUM(J18:J20) -> 0 | K21: =SUM(K18:K20) -> 0 | L21: =SUM(L18:L20) -> 0 | M21: =K21-L21 -> 0 | P21: =M21-N21 -> 0 | Q21: Period Accrual to Actual Month Payment Variance
B22: 2020-10-01 | C22: =VLOOKUP($F$4,'[2]BKC PIVOT'!$A:$N,'[2]BKC PIVOT'!K$1,FALSE) -> 0 | D22: 0 | E22: 0 | F22: =IFERROR(IF(C22="","",IF(C22>D22,C22-D22,0)),"") -> 0 | G22: 0.085 | H22: =IFERROR(IF(C22="","",E22*G22),"") -> 0 | I22: 0.1 | J22: =IFERROR(IF(C22="","",F22*I22),"") -> 0 | K22: 0 | L22: 0 | M22: 0 | P22: =K22-L22 -> 0
B23: 2020-11-01 | C23: =VLOOKUP($F$4,'[2]BKC PIVOT'!$A:$N,'[2]BKC PIVOT'!L$1,FALSE) -> 0 | D23: 0 | E23: 0 | F23: =IFERROR(IF(C23="","",IF(C23>D23,C23-D23,0)),"") -> 0 | G23: 0.085 | H23: =IFERROR(IF(C23="","",E23*G23),"") -> 0 | I23: 0.1 | J23: =IFERROR(IF(C23="","",F23*I23),"") -> 0 | K23: 0 | L23: 0 | M23: 0 | P23: 0
B24: 2020-12-01 | C24: =VLOOKUP($F$4,'[2]BKC PIVOT'!$A:$N,'[2]BKC PIVOT'!M$1,FALSE) -> 0 | D24: 0 | E24: 0 | F24: =IFERROR(IF(C24="","",IF(C24>D24,C24-D24,0)),"") -> 0 | G24: 0.085 | H24: =IFERROR(IF(C24="","",E24*G24),"") -> 0 | I24: 0.1 | J24: =IFERROR(IF(C24="","",F24*I24),"") -> 0 | K24: 0 | L24: 0 | M24: 0 | P24: 0
B25: Q4 | C25: =SUM(C22:C24) -> 0 | D25: =SUM(D22:D24) -> 0 | E25: =C25-D25 -> 0 | F25: =SUM(F22:F24) -> 0 | G25: 0.085 | H25: =SUM(H22:H24) -> 0 | I25: 0.1 | J25: =SUM(J22:J24) -> 0 | K25: =SUM(K22:K24) -> 0 | L25: =SUM(L22:L24) -> 0 | M25: =K25-L25 -> 0 | P25: =M25-N25 -> 0 | Q25: Period Accrual to Actual Month Payment Variance
B26: Total | C26: =$C$25+$C$21+$C$17+$C$13 -> 1274223.36 | D26: =$D$25+$D$21+$D$17+$D$13 -> 799999.995 | E26: =$E$25+$E$21+$E$17+$E$13 -> 474223.365 | F26: =$F$25+$F$21+$F$17+$F$13 -> 474223.365 | G26: 0.085 | H26: =$H$25+$H$21+$H$17+$H$13 -> 67999.99957 | I26: 0.1 | J26: =$J$25+$J$21+$J$17+$J$13 -> 47422.3365 | K26: =$K$25+$K$21+$K$17+$K$13 -> 115422.3361 | L26: =$L$25+$L$21+$L$17+$L$13 -> 68439.48 | M26: =K26-L26 -> 46982.85607 | N26: =$N$25+$N$21+$N$17+$N$13 -> 0 | P26: =M26-N26 -> 46982.85607
O28: P6 Accrual | P28: 7915.08
P29: =P26-P28 -> 39067.77607

Sheet Annual % Report - 2025
A1: #hidecolumn | B1: GPS MONTHLY SALES REPORT
C3: YEAR | D3: 2025 | E3: 2017
C4: ALIGNMENT | D4: 001442-BKC (Thibodaux) | F4: =LEFT(D4,10) -> 001442-BKC
A5: =IFERROR(IF(D5="","#hiderow",IF(D5=0,"hiderow","")),"hiderow") -> #hiderow | C5: VENDOR INFO
A6: =IFERROR(IF(D6="","#hiderow",IF(D6=0,"hiderow","")),"hiderow") -> #hiderow | C6: VENDOR FAX
A7: =IFERROR(IF(D7="","#hiderow",IF(D7=0,"hiderow","")),"hiderow") -> #hiderow | C7: VENDOR EMAIL
D9: Sales
B10: 2 | C10: =EOMONTH('Annual % Report - 2024'!$C$21,1) -> 2025-01-31 | D10: 247685.01
B11: 3 | C11: =EOMONTH(C10,1) -> 2025-02-28 | D11: 242612.35
B12: 4 | C12: =EOMONTH(C11,1) -> 2025-03-31 | D12: 294045.15
B13: 5 | C13: 2025-04-30 | D13: 274013.88
B14: 6 | C14: 2025-05-31 | D14: 287382.53
B15: 7 | C15: 2025-06-30 | D15: 265797.94
B16: 8 | C16: 2025-07-31 | D16: 276841.81
B17: 9 | C17: 2025-08-31 | D17: 286849.98
B18: 10 | C18: 2025-09-30 | D18: 275114.54
B19: 11 | C19: 2025-10-31 | D19: 295420.05
B20: 12 | C20: 2025-11-30 | D20: 270726.18
B21: 13 | C21: 2025-12-31 | D21: 298854.42

Sheet Annual % Report - 2024
A1: #hidecolumn | B1: GPS MONTHLY SALES REPORT
C3: YEAR | D3: =YEAR($C$10) -> 2024 | E3: 2017
C4: ALIGNMENT | D4: 001442-BKC (Thibodaux) | F4: =LEFT(D4,10) -> 001442-BKC
A5: =IFERROR(IF(D5="","#hiderow",IF(D5=0,"hiderow","")),"hiderow") -> #hiderow | C5: VENDOR INFO
A6: =IFERROR(IF(D6="","#hiderow",IF(D6=0,"hiderow","")),"hiderow") -> #hiderow | C6: VENDOR FAX
A7: =IFERROR(IF(D7="","#hiderow",IF(D7=0,"hiderow","")),"hiderow") -> #hiderow | C7: VENDOR EMAIL
D9: Sales
B10: 2 | C10: =EOMONTH('Annual % Report - 2023'!$C$21,1) -> 2024-01-31 | D10: =VLOOKUP($F$4,'[3]BKC PIVOT'!$A:$M,$B10,FALSE) -> 235071.6
B11: 3 | C11: =EOMONTH(C10,1) -> 2024-02-29 | D11: =VLOOKUP($F$4,'[3]BKC PIVOT'!$A:$M,$B11,FALSE) -> 246218.07
B12: 4 | C12: =EOMONTH(C11,1) -> 2024-03-31 | D12: =VLOOKUP($F$4,'[3]BKC PIVOT'!$A:$M,$B12,FALSE) -> 260850.79
B13: 5 | C13: 2024-04-30 | D13: =VLOOKUP($F$4,'[3]BKC PIVOT'!$A:$M,$B13,FALSE) -> 244260.22
B14: 6 | C14: 2024-05-31 | D14: =VLOOKUP($F$4,'[3]BKC PIVOT'!$A:$M,$B14,FALSE) -> 253799.25
B15: 7 | C15: 2024-06-30 | D15: =VLOOKUP($F$4,'[3]BKC PIVOT'!$A:$M,$B15,FALSE) -> 249325.81
B16: 8 | C16: 2024-07-31 | D16: =VLOOKUP($F$4,'[3]BKC PIVOT'!$A:$M,$B16,FALSE) -> 239529.56
B17: 9 | C17: 2024-08-31 | D17: =VLOOKUP($F$4,'[3]BKC PIVOT'!$A:$M,$B17,FALSE) -> 250273.31
B18: 10 | C18: 2024-09-30 | D18: =VLOOKUP($F$4,'[3]BKC PIVOT'!$A:$M,$B18,FALSE) -> 245249.5
B19: 11 | C19: 2024-10-31 | D19: =VLOOKUP($F$4,'[3]BKC PIVOT'!$A:$M,$B19,FALSE) -> 276829.54
B20: 12 | C20: 2024-11-30 | D20: =VLOOKUP($F$4,'[3]BKC PIVOT'!$A:$M,$B20,FALSE) -> 252265.07
B21: 13 | C21: 2024-12-31 | D21: =VLOOKUP($F$4,'[3]BKC PIVOT'!$A:$M,$B21,FALSE) -> 270441.53

Sheet Annual % Report - 2023 (hidden)
A1: #hidecolumn | B1: GPS MONTHLY SALES REPORT
C3: YEAR | D3: =YEAR($C$10) -> 2023 | E3: 2017
C4: ALIGNMENT | D4: 001442-BKC (Thibodaux) | F4: =LEFT(D4,10) -> 001442-BKC
A5: =IFERROR(IF(D5="","#hiderow",IF(D5=0,"hiderow","")),"hiderow") -> #hiderow | C5: VENDOR INFO
A6: =IFERROR(IF(D6="","#hiderow",IF(D6=0,"hiderow","")),"hiderow") -> #hiderow | C6: VENDOR FAX
A7: =IFERROR(IF(D7="","#hiderow",IF(D7=0,"hiderow","")),"hiderow") -> #hiderow | C7: VENDOR EMAIL
D9: Sales
B10: 2 | C10: =EOMONTH('Annual % Report - 2022'!$C$21,1) -> 2023-01-31 | D10: =VLOOKUP($F$4,'[4]BKC PIVOT'!$A:$M,$B10,FALSE) -> 237525.95
B11: 3 | C11: =EOMONTH(C10,1) -> 2023-02-28 | D11: =VLOOKUP($F$4,'[4]BKC PIVOT'!$A:$M,$B11,FALSE) -> 244699.13
B12: 4 | C12: =EOMONTH(C11,1) -> 2023-03-31 | D12: =VLOOKUP($F$4,'[4]BKC PIVOT'!$A:$M,$B12,FALSE) -> 274400.28
B13: 5 | C13: 2023-04-30 | D13: =VLOOKUP($F$4,'[4]BKC PIVOT'!$A:$M,$B13,FALSE) -> 255666.43
B14: 6 | C14: 2023-05-31 | D14: =VLOOKUP($F$4,'[4]BKC PIVOT'!$A:$M,$B14,FALSE) -> 258438.18
B15: 7 | C15: 2023-06-30 | D15: =VLOOKUP($F$4,'[4]BKC PIVOT'!$A:$M,$B15,FALSE) -> 247348.28
B16: 8 | C16: 2023-07-31 | D16: =VLOOKUP($F$4,'[4]BKC PIVOT'!$A:$M,$B16,FALSE) -> 252216.56
B17: 9 | C17: 2023-08-31 | D17: =VLOOKUP($F$4,'[4]BKC PIVOT'!$A:$M,$B17,FALSE) -> 255644.61
B18: 10 | C18: 2023-09-30 | D18: =VLOOKUP($F$4,'[4]BKC PIVOT'!$A:$M,$B18,FALSE) -> 259596.64
B19: 11 | C19: 2023-10-31 | D19: =VLOOKUP($F$4,'[4]BKC PIVOT'!$A:$M,$B19,FALSE) -> 270544.56
B20: 12 | C20: 2023-11-30 | D20: =VLOOKUP($F$4,'[4]BKC PIVOT'!$A:$M,$B20,FALSE) -> 244241.9
B21: 13 | C21: 2023-12-31 | D21: =VLOOKUP($F$4,'[4]BKC PIVOT'!$A:$M,$B21,FALSE) -> 259052.68

Sheet Annual % Report - 2022 (hidden)
A1: #hidecolumn | B1: GPS MONTHLY SALES REPORT
C3: YEAR | D3: =YEAR($C$10) -> 2022 | E3: 2017
C4: ALIGNMENT | D4: 001442-BKC (Thibodaux) | F4: =LEFT(D4,10) -> 001442-BKC
A5: =IFERROR(IF(D5="","#hiderow",IF(D5=0,"hiderow","")),"hiderow") -> #hiderow | C5: VENDOR INFO
A6: =IFERROR(IF(D6="","#hiderow",IF(D6=0,"hiderow","")),"hiderow") -> #hiderow | C6: VENDOR FAX
A7: =IFERROR(IF(D7="","#hiderow",IF(D7=0,"hiderow","")),"hiderow") -> #hiderow | C7: VENDOR EMAIL
D9: Sales
B10: 2 | C10: =EOMONTH('Annual % Report - 2021'!$C$21,1) -> 2022-01-31 | D10: =VLOOKUP($F$4,'[5]BKC PIVOT'!$A:$M,$B10,FALSE) -> 218223.59
B11: 3 | C11: =EOMONTH(C10,1) -> 2022-02-28 | D11: =VLOOKUP($F$4,'[5]BKC PIVOT'!$A:$M,$B11,FALSE) -> 230700.6
B12: 4 | C12: =EOMONTH(C11,1) -> 2022-03-31 | D12: =VLOOKUP($F$4,'[5]BKC PIVOT'!$A:$M,$B12,FALSE) -> 266879
B13: 5 | C13: 2022-04-30 | D13: =VLOOKUP($F$4,'[5]BKC PIVOT'!$A:$M,$B13,FALSE) -> 232587.01
B14: 6 | C14: 2022-05-31 | D14: =VLOOKUP($F$4,'[5]BKC PIVOT'!$A:$M,$B14,FALSE) -> 244609.49
B15: 7 | C15: 2022-06-30 | D15: =VLOOKUP($F$4,'[5]BKC PIVOT'!$A:$M,$B15,FALSE) -> 234937.6
B16: 8 | C16: 2022-07-31 | D16: =VLOOKUP($F$4,'[5]BKC PIVOT'!$A:$M,$B16,FALSE) -> 244882.34
B17: 9 | C17: 2022-08-31 | D17: =VLOOKUP($F$4,'[5]BKC PIVOT'!$A:$M,$B17,FALSE) -> 237888.16
B18: 10 | C18: 2022-09-30 | D18: =VLOOKUP($F$4,'[5]BKC PIVOT'!$A:$M,$B18,FALSE) -> 242279.51
B19: 11 | C19: 2022-10-31 | D19: =VLOOKUP($F$4,'[5]BKC PIVOT'!$A:$M,$B19,FALSE) -> 255465.59
B20: 12 | C20: 2022-11-30 | D20: =VLOOKUP($F$4,'[5]BKC PIVOT'!$A:$M,$B20,FALSE) -> 243547.57
B21: 13 | C21: 2022-12-31 | D21: =VLOOKUP($F$4,'[5]BKC PIVOT'!$A:$M,$B21,FALSE) -> 253183.11

Sheet Annual % Report - 2021 (hidden)
A1: #hidecolumn | B1: GPS MONTHLY SALES REPORT
C3: YEAR | D3: =YEAR($C$10) -> 2021 | E3: 2017
C4: ALIGNMENT | D4: 001442-BKC (Thibodaux) | F4: =LEFT(D4,10) -> 001442-BKC
A5: =IFERROR(IF(D5="","#hiderow",IF(D5=0,"hiderow","")),"hiderow") -> #hiderow | C5: VENDOR INFO
A6: =IFERROR(IF(D6="","#hiderow",IF(D6=0,"hiderow","")),"hiderow") -> #hiderow | C6: VENDOR FAX
A7: =IFERROR(IF(D7="","#hiderow",IF(D7=0,"hiderow","")),"hiderow") -> #hiderow | C7: VENDOR EMAIL
D9: Sales
B10: 2 | C10: =EOMONTH('Annual % Report - 2020'!$C$21,1) -> 2021-01-31 | D10: =VLOOKUP($F$4,'[6]BKC PIVOT'!$A:$M,$B10,FALSE) -> 218366.95
B11: 3 | C11: =EOMONTH(C10,1) -> 2021-02-28 | D11: =VLOOKUP($F$4,'[6]BKC PIVOT'!$A:$M,$B11,FALSE) -> 193725.25
B12: 4 | C12: =EOMONTH(C11,1) -> 2021-03-31 | D12: =VLOOKUP($F$4,'[6]BKC PIVOT'!$A:$M,$B12,FALSE) -> 239248.85
B13: 5 | C13: 2021-04-30 | D13: =VLOOKUP($F$4,'[6]BKC PIVOT'!$A:$M,$B13,FALSE) -> 237868.63
B14: 6 | C14: 2021-05-31 | D14: =VLOOKUP($F$4,'[6]BKC PIVOT'!$A:$M,$B14,FALSE) -> 229087.54
B15: 7 | C15: 2021-06-30 | D15: =VLOOKUP($F$4,'[6]BKC PIVOT'!$A:$M,$B15,FALSE) -> 218066.71
B16: 8 | C16: 2021-07-31 | D16: =VLOOKUP($F$4,'[6]BKC PIVOT'!$A:$M,$B16,FALSE) -> 231612.91
B17: 9 | C17: 2021-08-31 | D17: =VLOOKUP($F$4,'[6]BKC PIVOT'!$A:$M,$B17,FALSE) -> 196245.22
B18: 10 | C18: 2021-09-30 | D18: =VLOOKUP($F$4,'[6]BKC PIVOT'!$A:$M,$B18,FALSE) -> 116072.94
B19: 11 | C19: 2021-10-31 | D19: =VLOOKUP($F$4,'[6]BKC PIVOT'!$A:$M,$B19,FALSE) -> 219950.42
B20: 12 | C20: 2021-11-30 | D20: =VLOOKUP($F$4,'[6]BKC PIVOT'!$A:$M,$B20,FALSE) -> 163694.9
B21: 13 | C21: 2021-12-31 | D21: =VLOOKUP($F$4,'[6]BKC PIVOT'!$A:$M,$B21,FALSE) -> 123190.88

Sheet Annual % Report - 2020 (hidden)
A1: #hidecolumn | B1: GPS MONTHLY SALES REPORT
C3: YEAR | D3: =YEAR($C$10) -> 2020 | E3: 2017
C4: ALIGNMENT | D4: 001442-BKC (Thibodaux) | F4: =LEFT(D4,10) -> 001442-BKC
A5: =IFERROR(IF(D5="","#hiderow",IF(D5=0,"hiderow","")),"hiderow") -> #hiderow | C5: VENDOR INFO
A6: =IFERROR(IF(D6="","#hiderow",IF(D6=0,"hiderow","")),"hiderow") -> #hiderow | C6: VENDOR FAX
A7: =IFERROR(IF(D7="","#hiderow",IF(D7=0,"hiderow","")),"hiderow") -> #hiderow | C7: VENDOR EMAIL
D9: Sales
B10: 2 | C10: 2020-01-01 | D10: =VLOOKUP($F$4,'[7]BKC PIVOT'!$A:$M,$B10,FALSE) -> 217878.14
B11: 3 | C11: =EOMONTH(C10,1) -> 2020-02-29 | D11: =VLOOKUP($F$4,'[7]BKC PIVOT'!$A:$M,$B11,FALSE) -> 233370.03
B12: 4 | C12: =EOMONTH(C11,1) -> 2020-03-31 | D12: =VLOOKUP($F$4,'[7]BKC PIVOT'!$A:$M,$B12,FALSE) -> 199115.06
B13: 5 | C13: 2020-04-30 | D13: =VLOOKUP($F$4,'[7]BKC PIVOT'!$A:$M,$B13,FALSE) -> 170785.86
B14: 6 | C14: 2020-05-31 | D14: =VLOOKUP($F$4,'[7]BKC PIVOT'!$A:$M,$B14,FALSE) -> 221984.81
B15: 7 | C15: 2020-06-30 | D15: =VLOOKUP($F$4,'[7]BKC PIVOT'!$A:$M,$B15,FALSE) -> 231089.46
B16: 8 | C16: 2020-07-31 | D16: =VLOOKUP($F$4,'[7]BKC PIVOT'!$A:$M,$B16,FALSE) -> 246338.51
B17: 9 | C17: 2020-08-31 | D17: =VLOOKUP($F$4,'[7]BKC PIVOT'!$A:$M,$B17,FALSE) -> 249464.7
B18: 10 | C18: 2020-09-30 | D18: =VLOOKUP($F$4,'[7]BKC PIVOT'!$A:$M,$B18,FALSE) -> 227764.61
B19: 11 | C19: 2020-10-31 | D19: =VLOOKUP($F$4,'[7]BKC PIVOT'!$A:$M,$B19,FALSE) -> 249109.03
B20: 12 | C20: 2020-11-30 | D20: =VLOOKUP($F$4,'[7]BKC PIVOT'!$A:$M,$B20,FALSE) -> 220720.09
B21: 13 | C21: 2020-12-31 | D21: =VLOOKUP($F$4,'[7]BKC PIVOT'!$A:$M,$B21,FALSE) -> 234449.15

Sheet Rent Schedule
A1: Begin Date | B1: End Date | C1: Approval Status | D1: Payment Amount | E1: Daily Rent Rate | F1: Annual Amount | G1: Rate | H1: First Payment | I1: Last Payment | J1: Is CPI? | K1: Notes
A2: 2016-12-19 | B2: 2019-12-31 | C2: Approved | D2: 9918.75 | F2: 119025 | H2: 4159.48 | I2: 9918.75 | J2: No | K2: Extension Yr 11-15 Base Rent per 1st Amendment (prior BK SL)
A3: 2020-01-01 | B3: 2024-12-31 | C3: Approved | D3: 11406.58 | F3: 136879 | H3: 11406.58 | I3: 11406.58 | J3: No | K3: Option 1 Base Rent per 1st Amendment (prior BK SL)
A4: 2025-01-01 | B4: 2029-12-31 | C4: Approved | D4: 13117.5 | F4: 157410 | H4: 13117.5 | I4: 13117.5 | J4: No | K4: Yr 1-5 Base Rent per Lease
A5: 2030-01-01 | B5: 2034-12-31 | C5: Approved | D5: 14429.33 | F5: 173152 | H5: 14429.33 | I5: 14429.33 | J5: No | K5: Yr 6-10 Base Rent per Lease
A6: 2035-01-01 | B6: 2039-12-31 | C6: Approved | D6: 15872.25 | F6: 190467 | H6: 15872.25 | I6: 15872.25 | J6: No | K6: Yr 11-15 Base Rent per Lease
A7: 2040-01-01 | B7: 2044-12-31 | C7: Approved | D7: 17459.5 | F7: 209514 | H7: 17459.5 | I7: 17459.5 | J7: No | K7: Option 1 Base Rent per Lease
A8: 2045-01-01 | B8: 2049-12-31 | C8: Approved | D8: 19205.42 | F8: 230465 | H8: 19205.42 | I8: 19205.42 | J8: No | K8: Option 2 Base Rent per Lease
A9: 2050-01-01 | B9: 2054-12-31 | C9: Approved | D9: 21126 | F9: 253512 | H9: 21126 | I9: 21126 | J9: No | K9: Option 3 Base Rent per Lease
A10: 2055-01-01 | B10: 2059-12-31 | C10: Approved | D10: 23238.58 | F10: 278863 | H10: 23238.58 | I10: 23238.58 | J10: No | K10: Option 4 Base Rent per Lease

Sheet Annual % Report - 2019 (hidden)
A1: #hidecolumn | B1: GPS MONTHLY SALES REPORT
C3: YEAR | D3: 2019 | E3: 2017
C4: ALIGNMENT | D4: 001442-BKC (Thibodaux) | F4: =LEFT(D4,10) -> 001442-BKC
A5: =IFERROR(IF(D5="","#hiderow",IF(D5=0,"hiderow","")),"hiderow") -> #hiderow | C5: VENDOR INFO
A6: =IFERROR(IF(D6="","#hiderow",IF(D6=0,"hiderow","")),"hiderow") -> #hiderow | C6: VENDOR FAX
A7: =IFERROR(IF(D7="","#hiderow",IF(D7=0,"hiderow","")),"hiderow") -> #hiderow | C7: VENDOR EMAIL
D9: Sales
B10: 2019 | C10: January | D10: =VLOOKUP($F$4,'[8]BKC PIVOT 2'!$A:$M,'[8]BKC PIVOT 2'!B$3,FALSE) -> 239769.38
B11: 2019 | C11: February | D11: =VLOOKUP($F$4,'[8]BKC PIVOT 2'!$A:$M,'[8]BKC PIVOT 2'!C$3,FALSE) -> 243787.07
B12: 2019 | C12: March | D12: =VLOOKUP($F$4,'[8]BKC PIVOT 2'!$A:$M,'[8]BKC PIVOT 2'!D$3,FALSE) -> 270527.05
B13: 2019 | C13: April | D13: =VLOOKUP($F$4,'[8]BKC PIVOT 2'!$A:$M,'[8]BKC PIVOT 2'!E$3,FALSE) -> 246494.97
B14: 2019 | C14: May | D14: =VLOOKUP($F$4,'[8]BKC PIVOT 2'!$A:$M,'[8]BKC PIVOT 2'!F$3,FALSE) -> 249695.29
B15: 2019 | C15: June | D15: =VLOOKUP($F$4,'[8]BKC PIVOT 2'!$A:$M,'[8]BKC PIVOT 2'!G$3,FALSE) -> 239179.78
B16: 2019 | C16: July | D16: =VLOOKUP($F$4,'[8]BKC PIVOT 2'!$A:$M,'[8]BKC PIVOT 2'!H$3,FALSE) -> 232995.72
B17: 2019 | C17: August | D17: =VLOOKUP($F$4,'[8]BKC PIVOT 2'!$A:$M,'[8]BKC PIVOT 2'!I$3,FALSE) -> 245259.78
B18: 2019 | C18: September | D18: =VLOOKUP($F$4,'[8]BKC PIVOT 2'!$A:$M,'[8]BKC PIVOT 2'!J$3,FALSE) -> 242782.47
B19: 2019 | C19: October | D19: =VLOOKUP($F$4,'[8]BKC PIVOT 2'!$A:$M,'[8]BKC PIVOT 2'!K$3,FALSE) -> 256216.33
B20: 2019 | C20: November | D20: =VLOOKUP($F$4,'[8]BKC PIVOT 2'!$A:$M,'[8]BKC PIVOT 2'!L$3,FALSE) -> 227318.02
B21: 2019 | C21: December | D21: =VLOOKUP($F$4,'[8]BKC PIVOT 2'!$A:$M,'[8]BKC PIVOT 2'!M$3,FALSE) -> 235114.49
C23: Gross Sales | D23: =SUM(D10:D21) -> 2929140.35
C24: ="- Breakpoint" -> - Breakpoint | D24: =(119025/0.05)/12*COUNT($D$10:$D$21) -> 2380500
C26: Sales over breakpoint | D26: =IF(D23-D24<0,0,D23-D24) -> 548640.35
C27: Percent Rent % | D27: 0.05
C28: Percent Rent Due | D28: =D26*D27 -> 27432.0175
C29: Less Annual Percent Rent Paid | D29: =7858.45+6919.71+6211.43+6095.94 -> 27085.53
C30: Percent Rent Due | D30: =D28-D29 -> 346.4875

Sheet Annual Sales - 2020 - 2021 (hidden)
F1: GPS Percent Rent Calculation
A3: 000331-BKC (7 Mile Livonia)
A4: Vendor Info | B4: BKC | F4: 000331-BKC
A5: 2020 Base Rent | B5: 10301.68
C9: Sales | D9: Monthly Breakpoint | E9: Excess Sales 1 | F9: Excess Sales 2 | G9: % - Tier 1 | H9: $ - Tier 1 | I9: % - Tier 2 | J9: $ - Tier 1 | K9: Total Tier Sales* % | L9: Monthly Base Rents | M9: Total Percent Rent - YTD | N9: Amount Paid - YTD | O9: Notes | P9: Balance Due
B10: 2020-08-01 | C10: 130419.57 | D10: =(1599999.99/12) -> 133333.3325 | E10: =IFERROR(IF(C10<D10,C10,D10),"") -> 130419.57 | F10: =IFERROR(IF(C10="","",IF(C10>D10,C10-D10,0)),"") -> 0 | G10: 0.085 | H10: =IFERROR(IF(C10="","",E10*G10),"") -> 11085.66345 | I10: 0.1 | J10: =IFERROR(IF(C10="","",F10*I10),"") -> 0 | K10: =IFERROR(+H10+J10,"") -> 11085.66345 | L10: 7091.69 | M10: =K10-L10 -> 3993.97345 | P10: =K10-L10 -> 3993.97345
B11: 2020-09-01 | C11: 123659.55 | D11: =(1599999.99/12) -> 133333.3325 | E11: =IFERROR(IF(C11<D11,C11,D11),"") -> 123659.55 | F11: =IFERROR(IF(C11="","",IF(C11>D11,C11-D11,0)),"") -> 0 | G11: 0.085 | H11: =IFERROR(IF(C11="","",E11*G11),"") -> 10511.06175 | I11: 0.1 | J11: =IFERROR(IF(C11="","",F11*I11),"") -> 0 | K11: =IFERROR(+H11+J11,"") -> 10511.06175 | L11: 7091.69 | M11: =K11-L11 -> 3419.37175 | P11: =K11-L11 -> 3419.37175
B12: 2020-10-01 | C12: 124947.21 | D12: 133333.3325 | E12: 124947.21 | F12: 0 | G12: 0.085 | H12: 10620.51285 | I12: 0.1 | J12: 0 | K12: 10620.51285 | L12: 7091.69 | M12: 3528.82285 | P12: 3528.82285
B13: 2020-11-01 | C13: 100113.79 | D13: 133333.3325 | E13: 100113.79 | F13: 0 | G13: 0.085 | H13: 8509.67215 | I13: 0.1 | J13: 0 | K13: 8509.67215 | L13: 7091.69 | M13: 1417.98215 | P13: 1417.98215
B14: 2020-12-01 | C14: 125419.31 | D14: 133333.3325 | E14: 125419.31 | F14: 0 | G14: 0.085 | H14: 10660.64135 | I14: 0.1 | J14: 0 | K14: 10660.64135 | L14: 7091.69 | M14: 3568.95135 | P14: 3568.95135
B15: 2021-01-01 | C15: 127059.73 | D15: 133333.3325 | E15: 127059.73 | F15: 0 | G15: 0.085 | H15: 10800.07705 | I15: 0.1 | J15: 0 | K15: 10800.07705 | L15: 7091.69 | M15: 3708.38705 | P15: 3708.38705
B16: 2021-02-01 | C16: =VLOOKUP($F$4,'[2]BKC PIVOT'!$A:$G,'[2]BKC PIVOT'!$E$1,FALSE) -> 108861.31 | D16: 133333.3325 | E16: 108861.31 | F16: 0 | G16: 0.085 | H16: 9253.21135 | I16: 0.1 | J16: 0 | K16: 9253.21135 | L16: 7091.69 | M16: 2161.52135 | P16: =K16-L16 -> 2161.52135
B17: 2021-03-01 | C17: =VLOOKUP($F$4,'[2]BKC PIVOT'!$A:$G,'[2]BKC PIVOT'!$F$1,FALSE) -> 152867.49 | D17: 133333.3325 | E17: 133333.3325 | F17: 19534.1575 | G17: 0.085 | H17: 11333.33326 | I17: 0.1 | J17: 1953.41575 | K17: =IFERROR(+H17+J17,"") -> 13286.74901 | L17: 7091.69 | M17: =K17-L17 -> 6195.059012 | P17: =K17-L17 -> 6195.059012
B18: 2021-04-01 | C18: =VLOOKUP($F$4,'[2]BKC PIVOT'!$A:$G,'[2]BKC PIVOT'!$G$1,FALSE) -> 170000.17 | D18: 133333.3325 | E18: 133333.3325 | F18: 36666.8375 | G18: 0.085 | H18: 11333.33326 | I18: 0.1 | J18: 3666.68375 | K18: 15000.01701 | L18: 7091.69 | M18: 7908.327012 | P18: 7908.327012
B19: 2021-05-01 | C19: 0 | D19: 0 | E19: 0 | F19: 0 | G19: 0.085 | H19: 0 | I19: 0.1 | J19: 0 | K19: 0 | L19: 0 | M19: 0 | P19: =K19-L19 -> 0
B20: 2021-06-01 | C20: 0 | D20: 0 | E20: 0 | F20: 0 | G20: 0.085 | H20: 0 | I20: 0.1 | J20: 0 | K20: 0 | L20: 0 | M20: 0 | P20: 0
B21: 2021-07-01 | C21: 0 | D21: 0 | E21: 0 | F21: 0 | G21: 0.085 | H21: 0 | I21: 0.1 | J21: 0 | K21: 0 | L21: 0 | M21: 0 | P21: 0
B23: Total | C23: =SUM(C10:C22) -> 1163348.13 | D23: =SUM(D10:D22) -> 1199999.992 | E23: =SUM(E10:E22) -> 1107147.135 | F23: =SUM(F10:F22) -> 56200.995 | G23: 0.085 | H23: =SUM(H10:H22) -> 94107.50648 | I23: 0.1 | J23: =SUM(J10:J22) -> 5620.0995 | K23: =SUM(K10:K22) -> 99727.60597 | L23: =SUM(L10:L22) -> 63825.21 | M23: =SUM(M10:M22) -> 35902.39597 | N23: 0 | P23: =SUM(P10:P22) -> 35902.39597

Sheet Annual Sales - 2018 (hidden)
A1: #hidecolumn | B1: GPS MONTHLY SALES REPORT
C3: YEAR | D3: 2019 | E3: 2017
C4: ALIGNMENT | D4: 000035-BKC (35 - Mobile Hwy) | F4: 000035-BKC
A5: =IFERROR(IF(D5="","#hiderow",IF(D5=0,"hiderow","")),"hiderow") -> #hiderow | C5: VENDOR INFO
A6: =IFERROR(IF(D6="","#hiderow",IF(D6=0,"hiderow","")),"hiderow") -> #hiderow | C6: VENDOR FAX
A7: =IFERROR(IF(D7="","#hiderow",IF(D7=0,"hiderow","")),"hiderow") -> #hiderow | C7: VENDOR EMAIL
D9: Sales
C10: 2019-01-01 | D10: 146973.81
C11: 2019-02-01 | D11: 149364.54
C12: 2019-03-01 | D12: 173418.35
C13: 2019-04-01 | D13: 153529.27
C14: 2019-05-01 | D14: 143860.27
C15: 2019-06-01 | D15: 131093.26
C16: 2019-07-01 | D16: 133792.84
C17: 2019-08-01 | D17: 140272.82
C18: 2019-09-01 | D18: 125703.84
C19: 2019-10-01 | D19: 130419.57
C20: 2019-11-01 | D20: 123659.55
C21: 2019-12-01 | D21: 124947.21
C22: 2019 Total | D22: 1677035.33
